bitfinex/quotes_ETHUSD_20250213
["timestamp","ask_amount","ask_price","bid_price","bid_amount"]
[1739434621463,0.0336,2671.4,2670.9,3.74392]
[1739434621673,0.0336,2671.4,2671.0,3.74389]
[1739434621833,0.343,2671.7,2670.6,3.0]
[1739434622175,3.74307,2671.6,2670.9,3.74398]
[1739434622366,3.74343,2671.4,2670.8,3.74411]
[1739434622548,3.74343,2671.4,2670.9,3.74403]
[1739434622749,3.74343,2671.4,2670.7,3.74419]
[1739434622957,3.74343,2671.4,2670.8,3.7441]
[1739434623539,0.343,2671.3,2670.8,3.7441]
[1739434623951,0.342,2671.4,2670.7,0.03743919]
[1739434624268,3.74424,2670.8,2670.0,0.7925]
[1739434624476,3.74443,2670.7,2670.2,3.74502]
[1739434625071,0.0336,2670.8,2670.2,3.74502]
[1739434625274,3.74442,2670.7,2670.1,3.74505]
[1739434625434,3.74513,2670.2,2669.6,3.74577]
[1739434625630,3.74535,2670.0,2669.5,0.00749203]
[1739434625864,3.74535,2670.0,2669.5,3.75348203]
[1739434626265,3.74585,2669.7,2669.5,0.00749203]
[1739434626645,3.74568,2669.8,2669.5,0.00749203]
[1739434626963,3.74551,2669.9,2669.5,0.00749203]
[1739434627162,3.74571,2669.8,2669.5,0.00749203]
[1739434627362,0.0075,2670.0,2669.5,0.00749203]
[1739434627563,3.7458,2669.7,2669.5,0.00749203]
[1739434627775,3.74545,2669.9,2669.5,0.00749203]
[1739434628081,0.3756,2670.1,2669.5,0.00749203]
[1739434628242,0.342,2670.1,2670.0,3.74531]
[1739434628577,0.342,2670.1,2669.9,3.74544]
[1739434628735,0.342,2670.3,2670.2,3.74494]
[1739434628940,0.342,2670.4,2670.3,3.74489]
[1739434629149,0.0336,2671.0,2670.3,3.74489]
[1739434629374,0.342,2670.6,2670.3,3.74478]
[1739434630482,3.74342,2671.4,2670.1,3.74511]
[1739434630483,0.0336,2671.4,2670.7,3.74424]
[1739434630779,0.341,2671.3,2670.8,3.74417]
[1739434630983,0.341,2671.3,2670.4,0.03743937]
[1739434631142,0.0336,2671.9,2671.3,3.74346]
[1739434631347,0.0336,2671.9,2671.1,3.74375]
[1739434631348,0.341,2671.8,2671.1,3.74375]
[1739434631582,0.341,2671.8,2670.9,0.7833]
[1739434631583,7.74336,2671.4,2670.7,3.74423]
[1739434631768,7.7434,2671.4,2670.8,3.7441]
[1739434632189,3.74319,2671.6,2670.9,3.74403]
[1739434632345,3.74299,2671.7,2670.9,3.74403]
[1739434632771,0.0336,2671.9,2670.9,0.374403]
[1739434632945,0.0336,2671.9,2670.5,0.55]
[1739434632946,0.341,2671.8,2671.1,0.7849]
[1739434633302,3.74331,2671.5,2670.8,4.5721]
[1739434633502,3.74375,2671.2,2670.4,4.57268]
[1739434633703,3.74375,2671.2,2670.6,3.74447]
[1739434634001,3.74339,2671.4,2670.7,3.74423]
[1739434634188,3.74353,2671.3,2670.6,3.74436]
[1739434634379,3.74353,2671.3,2670.6,7.48874]
[1739434634575,3.74353,2671.3,2670.6,3.74436]
[1739434634784,3.74353,2671.3,2670.7,3.74433]
[1739434635078,3.74336,2671.4,2670.4,0.828]
[1739434635257,3.74336,2671.4,2670.7,3.74424]
[1739434635461,0.341,2671.8,2670.5,3.55]
[1739434635462,4.08385,2671.8,2670.5,3.55]
[1739434635662,4.08385,2671.8,2671.1,3.74368]
[1739434636089,4.08385,2671.8,2671.1,3.74365]
[1739434636400,3.74331,2671.5,2670.7,3.74428]
[1739434636600,3.7435,2671.3,2670.7,3.74428]
[1739434636806,3.7435,2671.3,2670.7,7.48851]
[1739434637033,3.7435,2671.3,2670.8,3.74415]
[1739434637208,7.48661,2671.5,2670.8,3.74415]
[1739434637374,0.341,2671.8,2671.2,3.74355]
[1739434637568,3.74243,2672.1,2671.3,0.03743584]
[1739434637781,0.34,2672.0,2671.7,3.74282]
[1739434638380,0.34,2672.0,2671.8,3.74273]
[1739434638593,0.339,2672.1,2671.8,3.74273]
[1739434638803,0.339,2672.1,2671.9,3.74257]
[1739434639102,0.339,2672.2,2671.9,3.74255]
[1739434639305,0.339,2672.2,2672.0,3.7424]
[1739434639469,0.339,2672.2,2671.9,3.74255]
[1739434639671,0.339,2672.2,2671.7,3.74286]
[1739434639866,0.339,2672.2,2671.8,3.74272]
[1739434640074,0.339,2672.2,2671.7,3.74286]
[1739434640303,0.339,2672.2,2671.8,3.74279]
[1739434640691,0.339,2672.2,2671.7,3.7428]
[1739434640895,4.08125,2672.2,2671.7,3.7428]
[1739434641109,4.08125,2672.2,2671.6,3.74306]
[1739434641416,0.339,2672.2,2671.6,3.74296]
[1739434641572,0.339,2672.2,2671.8,3.74278]
[1739434641977,0.339,2672.2,2671.5,0.7603]
[1739434641978,0.339,2672.2,2671.9,3.74255]
[1739434642216,0.339,2672.2,2671.9,3.74258]
[1739434642406,0.339,2672.2,2671.7,3.7429]
[1739434642589,0.339,2672.2,2671.7,7.48574]
[1739434642777,0.339,2672.2,2671.9,3.74264]
[1739434643315,0.0336,2672.7,2672.1,3.74237]
[1739434643477,3.77522,2672.7,2672.1,3.74237]
[1739434643677,3.77522,2672.7,2672.1,3.74228]
[1739434643678,0.337,2672.6,2672.1,3.74228]
[1739434644609,0.336,2672.5,2672.1,3.74228]
[1739434644813,3.74204,2672.4,2671.7,3.74287]
[1739434644989,3.74204,2672.4,2671.9,3.74255]
[1739434645189,0.336,2672.5,2671.6,3.74307]
[1739434645386,0.0336,2672.7,2672.4,3.74195]
[1739434645612,0.335,2672.6,2672.2,3.74215]
[1739434645816,0.335,2672.6,2672.0,7.48482]
[1739434646019,0.335,2672.6,2672.1,3.74234]
[1739434646191,0.335,2672.6,2672.2,7.48442]
[1739434646381,0.1723,2673.1,2672.3,0.03741947]
[1739434646581,3.91329,2673.1,2672.6,3.74167]
[1739434646896,0.335,2673.0,2672.4,3.74188]
[1739434647094,3.74134,2672.9,2672.4,3.74188]
[1739434647296,3.74134,2672.9,2672.2,8.28457]
[1739434647498,3.74148,2672.8,2672.2,8.28455]
[1739434647698,3.74172,2672.6,2671.7,0.8761]
[1739434647909,0.334,2672.7,2671.7,0.8761]
[1739434648218,0.334,2672.7,2672.2,3.74221]
[1739434648432,0.334,2672.7,2672.4,3.74194]
[1739434648720,0.1723,2673.1,2672.4,3.74194]
[1739434648721,0.334,2672.6,2672.4,3.74186]
[1739434648893,0.334,2672.6,2672.5,3.74181]
[1739434649079,0.1723,2673.1,2672.4,3.74186]
[1739434649080,0.1723,2673.1,2672.7,3.7414]
[1739434649283,4.07513,2673.0,2672.5,3.74173]
[1739434649847,0.1723,2673.1,2672.3,3.74202]
[1739434649848,0.334,2672.9,2672.8,3.74137]
[1739434650155,0.005,2673.4,2673.3,3.74069]
[1739434650919,0.005,2673.4,2673.0,3.74107]
[1739434651219,0.005,2673.4,2673.0,7.48205]
[1739434651424,0.005,2673.4,2672.6,0.8126]
[1739434651594,0.005,2673.4,2672.8,3.74137]
[1739434651784,0.005,2673.4,2672.9,3.74121]
[1739434651984,0.005,2673.4,2673.1,3.74097]
[1739434652228,0.339,2673.4,2673.3,3.74069]
[1739434652524,0.339,2673.4,2673.0,4.60759]
[1739434652821,0.334,2673.3,2672.8,3.74133]
[1739434653024,0.334,2673.3,2673.1,3.74087]
[1739434653523,0.334,2673.3,2673.2,3.74083]
[1739434653885,0.005,2673.4,2673.3,3.74069]
[1739434654122,3.73872,2674.8,2674.0,3.73962]
[1739434654279,3.73896,2674.6,2673.9,3.7398]
[1739434654689,3.73917,2674.4,2673.7,3.7401]
[1739434654913,0.335,2674.3,2673.8,3.73998]
[1739434655114,0.335,2674.3,2673.8,0.03739629]
[1739434655290,0.335,2674.4,2674.1,3.73948]
[1739434655801,3.7389,2674.6,2673.9,4.60623]
[1739434656003,0.335,2674.5,2673.9,4.60623]
[1739434656203,0.335,2674.5,2674.1,3.73944]
[1739434656425,0.334,2674.4,2674.1,3.73944]
[1739434656594,0.334,2674.4,2673.9,0.8665]
[1739434656794,0.334,2674.4,2674.2,3.73939]
[1739434656994,0.334,2674.4,2673.9,0.8665]
[1739434656995,0.334,2674.6,2674.3,3.73929]
[1739434657200,0.334,2674.5,2674.1,3.73953]
[1739434657399,0.334,2674.5,2673.9,0.8665]
[1739434657400,0.334,2674.5,2673.9,4.60626]
[1739434657838,0.5063,2674.5,2673.9,3.73976]
[1739434657999,0.5063,2674.5,2673.9,7.47948]
[1739434658205,0.5063,2674.5,2673.6,3.0]
[1739434658423,0.5063,2674.5,2674.0,3.73959]
[1739434658601,0.5063,2674.5,2674.1,3.73957]
[1739434658802,0.5063,2674.5,2674.0,3.73959]
[1739434659006,0.5063,2674.5,2673.9,3.0]
[1739434659206,3.73925,2674.4,2673.9,3.0]
[1739434659428,7.47852,2674.4,2673.9,3.0]
[1739434659630,3.73925,2674.4,2673.9,3.0]
[1739434659837,0.5063,2674.5,2674.0,3.73969]
[1739434659999,0.1723,2674.5,2674.2,3.73938]
[1739434660205,3.73846,2674.9,2673.7,0.55]
[1739434660206,0.333,2674.4,2673.7,0.55]
[1739434660518,0.333,2674.4,2673.8,3.73991]
[1739434661039,3.73879,2674.7,2674.0,3.73962]
[1739434661245,0.333,2674.3,2673.9,6.73982]
[1739434661446,0.333,2674.3,2673.8,3.0]
[1739434661746,0.333,2674.3,2673.8,3.73996]
[1739434661904,0.333,2674.3,2673.9,3.73979]
[1739434662104,0.333,2674.3,2674.0,3.73965]
[1739434662445,4.07232,2674.3,2673.7,3.74005]
[1739434662740,0.1723,2674.1,2673.7,3.0]
[1739434662942,0.1723,2674.1,2673.7,3.74001]
[1739434663245,0.1723,2674.1,2673.8,3.73997]
[1739434663445,0.1723,2674.1,2673.8,3.73999]
[1739434663627,0.1723,2674.1,2673.3,0.55]
[1739434663819,0.1723,2674.1,2673.5,3.0]
[1739434664020,0.1723,2674.1,2673.9,3.73978]
[1739434664233,0.333,2674.3,2673.9,3.73978]
[1739434664438,0.333,2674.3,2674.1,3.73946]
[1739434664626,0.1723,2674.9,2674.4,3.73912]
[1739434664809,3.73873,2674.7,2674.0,3.73968]
[1739434665010,3.73881,2674.7,2674.1,3.73949]
[1739434665209,3.73881,2674.7,2674.2,3.7394]
[1739434665451,0.331,2674.8,2674.3,3.73929]
[1739434665806,0.331,2674.7,2674.3,3.73929]
[1739434666044,0.1723,2674.9,2674.1,3.0]
[1739434666335,0.0075,2675.3,2674.6,3.73878]
[1739434666336,0.332,2674.8,2674.6,3.73878]
[1739434666645,0.332,2674.8,2674.3,5.05281129]
[1739434666646,0.332,2674.8,2674.5,3.739]
[1739434667084,0.332,2674.8,2674.6,3.73876]
[1739434667210,0.332,2674.8,2674.5,3.739]
[1739434667747,0.332,2674.8,2674.6,3.73886]
[1739434667949,0.332,2674.8,2674.4,3.0]
[1739434668119,0.332,2674.8,2674.2,3.73943]
[1739434668518,0.332,2674.8,2674.3,3.73919]
[1739434668740,4.07063,2674.8,2674.3,3.73919]
[1739434669020,0.332,2674.8,2674.3,3.73928]
[1739434669211,0.332,2674.8,2674.2,3.73931]
[1739434669412,0.332,2674.8,2674.1,3.0]
[1739434669642,0.332,2674.8,2674.3,3.73925]
[1739434669846,0.332,2674.8,2674.3,3.73921]
[1739434670050,0.332,2674.8,2674.5,3.73891]
[1739434670248,3.91035,2675.2,2674.7,3.73873]
[1739434670448,0.329,2674.8,2674.7,3.73873]
[1739434671075,0.329,2674.8,2674.5,7.47783]
[1739434671241,0.329,2674.8,2674.5,3.73891]
[1739434671861,0.1723,2675.2,2674.8,3.73849]
[1739434672050,3.91035,2675.2,2674.7,3.73863]
[1739434672408,0.328,2675.1,2674.7,7.47728]
[1739434672703,0.328,2675.1,2674.7,3.73863]
[1739434672881,0.1451596,2675.4,2674.9,4.18811129]
[1739434673035,0.328,2675.3,2675.2,3.73803]
[1739434673233,0.328,2675.3,2675.0,6.73828]
[1739434673463,0.328,2675.3,2674.6,7.92698129]
[1739434673664,0.1451596,2675.4,2675.3,3.73789]
[1739434673834,0.58473291,2676.6,2676.2,3.73651]
[1739434673835,0.1747,2676.4,2676.2,3.73651]
[1739434674040,4.0,2676.3,2676.0,7.92490129]
[1739434674283,0.329,2676.4,2676.0,11.66172129]
[1739434674453,0.329,2676.4,2676.1,3.0]
[1739434674778,0.329,2676.4,2676.3,3.0]
[1739434675312,0.329,2676.4,2676.1,3.0]
[1739434675466,0.328,2676.4,2676.1,6.73677]
[1739434675809,0.328,2676.4,2676.1,6.73474389]
[1739434676342,0.328,2676.4,2676.1,2.99797389]
[1739434676943,0.327,2676.4,2676.1,2.99797389]
[1739434677607,3.73669,2676.2,2675.7,4.18811129]
[1739434677904,0.1747,2676.0,2675.4,4.18811129]
[1739434678198,3.73708,2675.9,2675.3,3.73783]
[1739434678424,0.1747,2676.0,2675.4,3.0]
[1739434678603,0.1747,2676.0,2675.5,3.73755]
[1739434678977,0.1747,2676.0,2675.7,3.0]
[1739434679144,0.1747,2676.0,2675.7,6.7373]
[1739434679484,0.1547,2676.0,2675.7,3.0]
[1739434679664,3.89163,2676.0,2675.4,3.73775]
[1739434679853,3.73747,2675.6,2675.0,0.8072]
[1739434680053,0.0075,2675.9,2674.9,3.73834]
[1739434680054,3.73762,2675.5,2674.9,3.73834]
[1739434680259,0.0075,2675.9,2675.0,3.73831]
[1739434680456,3.75214,2675.9,2675.2,3.73794]
[1739434681087,3.75234,2675.7,2675.1,6.73815]
[1739434681247,0.015,2675.7,2674.6,0.8024]
[1739434681452,3.73818,2675.1,2674.4,3.73906]
[1739434681760,3.73852,2674.9,2674.3,3.73918]
[1739434681948,0.325,2675.0,2674.4,6.73913]
[1739434682284,0.325,2675.0,2674.4,3.0]
[1739434682446,3.89325,2674.9,2674.4,3.0]
[1739434682990,3.89317,2674.9,2674.3,3.73927]
[1739434683203,3.7386,2674.8,2674.2,6.73935]
[1739434683425,0.0075,2674.8,2674.0,0.00747943]
[1739434683548,0.1547,2674.9,2674.3,3.73924]
[1739434683745,0.325,2674.8,2674.6,3.73874]
[1739434683949,0.325,2674.8,2674.7,3.73873]
[1739434684269,0.325,2674.8,2674.6,3.73874]
[1739434684454,0.325,2674.8,2674.7,3.73873]
[1739434684647,0.325,2674.8,2674.2,4.18811129]
[1739434685008,0.325,2674.8,2674.5,3.0]
[1739434685164,0.325,2674.8,2674.6,3.73885]
[1739434685346,0.325,2674.8,2674.7,3.0]
[1739434685747,0.325,2674.8,2674.6,3.73887]
[1739434685989,0.1547,2675.3,2674.6,0.0373856]
[1739434686147,0.325,2675.2,2675.0,3.73823]
[1739434686571,0.1547,2675.9,2675.5,3.73761]
[1739434686796,0.324,2675.8,2675.5,3.73753]
[1739434687310,0.324,2675.8,2675.1,7.18811129]
[1739434687507,0.324,2675.8,2675.5,3.73757]
[1739434687872,0.324,2675.8,2675.4,4.18811129]
[1739434688056,0.324,2675.8,2675.5,3.0]
[1739434688251,0.324,2675.8,2675.6,3.73741]
[1739434688485,0.324,2675.8,2675.5,6.73749]
[1739434688904,0.324,2675.8,2675.7,3.0]
[1739434689259,0.1547,2676.2,2675.8,3.0]
[1739434689454,0.324,2676.1,2675.7,3.73733]
[1739434690117,0.323,2676.1,2676.0,3.73681]
[1739434690327,0.323,2676.1,2676.0,6.73681]
[1739434690486,3.73755,2675.6,2675.2,4.18811129]
[1739434690681,0.1547,2675.5,2675.0,3.73826]
[1739434691638,0.1547,2675.5,2674.8,4.18811129]
[1739434691830,3.73721,2675.8,2675.1,3.73807]
[1739434691980,0.326,2675.7,2675.1,7.47613]
[1739434692183,3.73756,2675.6,2674.9,6.73838]
[1739434692386,4.06338,2675.7,2675.1,3.73817]
[1739434692704,0.326,2675.7,2674.9,3.0]
[1739434693123,3.73784,2675.4,2674.9,3.0]
[1739434693429,3.73754,2675.6,2675.0,3.73829]
[1739434694339,3.73764,2675.5,2674.9,3.73834]
[1739434694643,3.73754,2675.6,2675.0,3.73831]
[1739434694953,3.73724,2675.8,2675.2,0.8801]
[1739434695149,0.325,2675.5,2675.2,0.8801]
[1739434695326,0.325,2675.5,2675.1,3.73809]
[1739434695507,0.325,2675.5,2674.9,3.73843]
[1739434695844,0.325,2675.5,2675.1,3.73815]
[1739434695985,0.325,2675.5,2675.1,3.73808]
[1739434696191,0.325,2675.5,2675.2,3.73802]
[1739434696590,0.325,2675.8,2675.6,3.73739]
[1739434696887,0.325,2675.8,2675.7,3.73733]
[1739434697113,0.325,2675.8,2675.5,3.0]
[1739434697587,3.73734,2675.7,2675.2,3.73798]
[1739434698187,4.06223,2675.8,2675.2,3.73794]
[1739434698413,4.06223,2675.8,2675.3,3.0]
[1739434698609,0.325,2675.8,2675.3,3.0]
[1739434698926,4.0622,2675.8,2675.5,3.0]
[1739434699288,0.325,2675.8,2675.1,3.0]
[1739434699492,0.325,2675.8,2675.0,4.55121]
[1739434699493,0.325,2675.8,2675.4,3.0]
[1739434700120,4.06233,2675.8,2675.1,3.73809]
[1739434700321,0.325,2675.8,2675.0,0.8129]
[1739434700491,0.1547,2676.1,2675.7,3.73724]
[1739434700825,0.323,2676.0,2675.7,3.73724]
[1739434701331,3.7372,2675.8,2675.2,10.47588]
[1739434701530,0.323,2676.0,2675.0,0.8129]
[1739434701718,3.73719,2675.9,2675.0,3.8129]
[1739434701920,4.05994,2676.0,2675.5,6.73759]
[1739434702092,3.73712,2675.9,2675.5,3.0]
[1739434702435,3.73708,2675.9,2675.3,3.73778]
[1739434702592,4.05994,2676.0,2675.3,3.73778]
[1739434702792,4.05994,2676.0,2675.5,6.7376]
[1739434703329,4.05999,2676.0,2675.5,3.0]
[1739434703534,0.323,2676.0,2675.5,6.73758]
[1739434703692,0.323,2676.0,2675.7,3.7373]
[1739434703898,0.323,2676.0,2675.5,6.73753]
[1739434704535,3.7371,2675.9,2675.5,3.0]
[1739434704695,4.05994,2676.0,2675.5,3.0]
[1739434704901,0.323,2676.0,2675.2,3.0]
[1739434705145,3.73642,2676.4,2675.1,4.18811129]
[1739434705146,3.89062,2676.4,2675.9,3.73706]
[1739434705312,0.322,2676.3,2675.9,3.73706]
[1739434705516,0.322,2676.3,2675.8,3.0]
[1739434705693,0.1542,2676.4,2675.6,3.73747]
[1739434705893,0.1542,2676.4,2675.9,3.73692]
[1739434706098,0.1542,2676.4,2676.1,3.7367]
[1739434706338,0.321,2676.3,2675.7,7.54675]
[1739434706536,0.321,2676.3,2675.9,3.0]
[1739434706750,0.321,2676.3,2675.9,3.73698]
[1739434706924,0.1542,2676.4,2676.0,3.73691]
[1739434707232,0.321,2676.3,2676.2,6.73664]
[1739434707433,0.0075,2676.9,2676.3,3.0]
[1739434707601,0.0075,2676.9,2676.4,3.73623]
[1739434707602,0.321,2676.8,2676.4,3.73623]
[1739434707999,0.321,2676.8,2676.2,6.73659]
[1739434708210,4.0569,2676.8,2676.2,6.73659]
[1739434708639,0.321,2676.8,2676.4,3.73634]
[1739434708823,0.321,2676.8,2676.2,10.47306]
[1739434709025,0.321,2676.8,2676.1,3.0]
[1739434709219,3.73609,2676.6,2676.1,6.73676]
[1739434709446,7.79275,2676.8,2676.2,3.73658]
[1739434709652,3.73616,2676.6,2676.1,3.0]
[1739434709861,7.47237,2676.6,2676.1,3.0]
[1739434710059,3.73616,2676.6,2676.1,6.73676]
[1739434710266,4.05686,2676.8,2676.3,3.0]
[1739434710464,4.05686,2676.8,2676.1,3.0]
[1739434710465,0.321,2676.8,2676.1,3.0]
[1739434710755,3.73617,2676.6,2676.1,3.0]
[1739434711163,3.7364,2676.4,2675.8,3.73713]
[1739434711459,3.7364,2676.4,2675.9,3.0]
[1739434711761,3.73673,2676.2,2675.7,4.54683]
[1739434711960,3.73673,2676.2,2675.6,3.73739]
[1739434712135,3.73682,2676.1,2675.6,3.73739]
[1739434712338,3.89071,2676.3,2675.9,3.0]
[1739434712522,7.62732,2676.3,2675.9,3.0]
[1739434712726,3.89071,2676.3,2675.7,3.0]
[1739434712925,3.73672,2676.2,2675.6,3.73733]
[1739434713126,0.1542,2676.3,2675.4,0.8748]
[1739434713359,0.1542,2676.3,2675.9,3.73704]
[1739434713668,3.89077,2676.3,2675.8,3.0]
[1739434713829,0.1542,2676.3,2675.9,3.73705]
[1739434714036,3.89015,2676.7,2676.0,3.0]
[1739434714346,3.73651,2676.3,2675.8,3.0]
[1739434714546,3.75156,2676.3,2675.7,6.73732]
[1739434714733,0.015,2676.3,2675.4,4.61249]
[1739434714939,3.73689,2676.1,2675.4,4.61249]
[1739434715149,0.015,2676.3,2675.4,0.8748]
[1739434715380,3.737,2676.0,2675.4,3.73768]
[1739434715662,3.737,2676.0,2675.1,0.8545]
[1739434715663,0.0075,2676.2,2675.7,3.73725]
[1739434715866,0.318,2676.1,2675.8,3.73711]
[1739434716093,0.318,2676.1,2675.6,3.0]
[1739434716292,0.318,2676.1,2675.8,3.0]
[1739434716429,4.0549,2676.1,2675.5,4.61497]
[1739434716627,4.0549,2676.1,2675.4,3.0]
[1739434716966,3.73706,2675.9,2675.4,3.0]
[1739434717186,3.73706,2675.9,2675.4,6.73775]
[1739434717329,3.73707,2675.9,2675.4,3.0]
[1739434717724,4.05486,2676.1,2675.6,6.73737]
[1739434717932,3.89057,2676.4,2675.8,3.73719]
[1739434718160,3.89057,2676.4,2675.2,3.03737147]
[1739434718161,0.318,2676.3,2675.2,3.03737147]
[1739434718330,3.73685,2676.1,2675.4,3.73775]
[1739434718531,3.73708,2675.9,2675.4,3.73768]
[1739434718834,3.73685,2676.1,2675.6,3.73744]
[1739434719166,0.318,2676.1,2676.0,6.73685]
[1739434719365,0.318,2676.1,2676.0,3.0]
[1739434719964,4.05478,2676.1,2675.5,3.73757]
[1739434720542,0.318,2676.1,2675.6,3.73739]
[1739434720729,4.05481,2676.1,2675.6,3.73739]
[1739434720930,4.05481,2676.1,2675.6,7.47479]
[1739434721152,0.318,2676.1,2675.5,3.0]
[1739434721356,3.73614,2676.6,2676.0,3.0]
[1739434721541,0.317,2676.5,2676.1,3.73677]
[1739434722145,3.73652,2676.3,2675.7,3.73721]
[1739434722474,3.73655,2676.3,2675.8,3.0]
[1739434722870,3.73646,2676.4,2675.8,3.7371]
[1739434723046,3.73646,2676.4,2675.7,3.0]
[1739434723429,3.73657,2676.3,2675.7,3.0]
[1739434723634,0.317,2676.5,2675.5,0.38218]
[1739434723859,4.05328,2676.5,2675.8,3.73719]
[1739434724055,4.05328,2676.5,2676.0,3.0]
[1739434724265,0.317,2676.5,2675.5,3.38218]
[1739434724470,3.73666,2676.2,2675.6,3.0]
[1739434724818,3.73636,2676.4,2675.8,3.0]
[1739434724934,3.73657,2676.3,2675.8,3.0]
[1739434725393,3.73657,2676.3,2675.8,3.73717]
[1739434726192,3.73664,2676.2,2675.8,3.0]
[1739434726379,3.73664,2676.2,2675.6,3.73744]
[1739434726380,3.73672,2676.2,2675.6,3.73744]
[1739434726681,0.1542,2676.1,2675.4,0.8218]
[1739434726837,0.1542,2676.1,2675.7,3.0]
[1739434727040,0.1542,2676.1,2675.4,0.8218]
[1739434727280,0.1542,2676.1,2675.6,3.0]
[1739434727488,0.1542,2676.1,2675.8,3.0]
[1739434727656,0.1542,2676.1,2675.9,3.73694]
[1739434727851,0.1542,2676.4,2675.9,3.73694]
[1739434728053,3.73675,2676.2,2675.6,3.73739]
[1739434728247,0.0075,2676.3,2675.4,3.8218]
[1739434728451,3.73697,2676.0,2675.6,3.0]
[1739434728652,3.73688,2676.1,2675.6,3.0]
[1739434728879,3.73664,2676.2,2675.6,3.0]
[1739434729153,3.73692,2676.0,2675.6,3.0]
[1739434729486,3.73664,2676.2,2675.6,3.0]
[1739434729650,3.73664,2676.2,2675.7,3.73725]
[1739434729849,0.314,2676.1,2675.8,3.73719]
[1739434730054,0.314,2676.1,2675.9,3.73703]
[1739434730492,0.314,2676.0,2675.8,3.73716]
[1739434730669,0.314,2676.0,2675.6,3.73738]
[1739434730867,0.31197794,2676.0,2675.6,3.73738]
[1739434731054,0.31197794,2676.0,2675.7,3.0]
[1739434731255,0.31197794,2676.0,2675.7,6.73729]
[1739434731456,0.31197794,2676.0,2675.7,3.0]
[1739434731751,0.31197794,2676.0,2675.4,7.55948]
[1739434731956,0.31197794,2676.0,2675.4,5.09889373]
[1739434732170,0.31197794,2676.0,2675.7,3.0]
[1739434732895,0.31197794,2676.0,2675.7,6.73733]
[1739434733093,0.31197794,2676.0,2675.7,3.0]
[1739434733263,0.31197794,2676.0,2675.8,3.73713]
[1739434733463,0.31197794,2676.0,2675.7,6.73725]
[1739434733663,0.31197794,2676.0,2675.8,3.73719]
[1739434733958,0.31197794,2676.0,2675.4,2.09889373]
[1739434734296,0.31197794,2676.0,2675.5,3.73754]
[1739434734494,4.04891794,2676.0,2675.5,3.73754]
[1739434735483,0.31197794,2676.0,2675.7,3.0]
[1739434735704,0.31197794,2676.0,2675.7,6.73731]
[1739434736291,0.31197794,2676.0,2675.7,10.47456]
[1739434736618,0.31197794,2676.0,2675.7,6.73725]
[1739434736984,0.31197794,2676.0,2675.7,10.4745]
[1739434737182,0.31197794,2676.0,2675.9,3.73706]
[1739434737922,0.1542,2676.4,2676.3,3.7365]
[1739434738128,0.4652,2676.4,2676.3,3.7365]
[1739434738486,0.311,2676.4,2676.3,3.7365]
[1739434738686,0.311,2676.4,2675.9,6.73703]
[1739434738687,0.311,2676.4,2676.1,3.0]
[1739434739010,0.311,2676.4,2676.1,3.73668]
[1739434739184,0.311,2676.4,2676.2,3.73654]
[1739434739590,0.311,2676.4,2676.3,3.7365]
[1739434740003,0.311,2676.4,2676.1,3.7367]
[1739434740202,0.311,2676.4,2676.0,3.73689]
[1739434740436,0.1523,2676.3,2676.0,3.73681]
[1739434740645,0.1523,2676.3,2676.1,3.73671]
[1739434741202,0.1523,2676.3,2676.1,7.47341]
[1739434741510,3.88884,2676.3,2675.9,3.0]
[1739434741706,7.62542,2676.3,2675.9,3.0]
[1739434741932,3.88884,2676.3,2675.9,3.0]
[1739434742128,0.1523,2676.3,2676.0,3.73681]
[1739434742549,0.1523,2676.3,2676.1,3.73678]
[1739434742741,0.1523,2676.3,2676.0,3.73681]
[1739434742942,0.1523,2676.3,2675.9,3.0]
[1739434743161,3.88881,2676.3,2675.9,3.0]
[1739434743370,0.1523,2676.3,2675.9,6.73698]
[1739434743971,0.015,2676.2,2675.0,4.42371151]
[1739434744139,5.305,2676.2,2675.6,7.47473]
[1739434744344,5.305,2676.2,2675.8,3.7371]
[1739434744550,0.015,2676.0,2675.0,3.59571151]
[1739434744775,0.015,2676.0,2675.5,3.0]
[1739434745073,0.0075,2675.8,2675.3,3.73781]
[1739434745271,0.0075,2675.8,2675.4,3.73774]
[1739434745435,0.015,2675.9,2675.4,3.73774]
[1739434745639,0.015,2675.9,2675.4,3.73768]
[1739434746075,0.015,2675.9,2675.2,3.73797]
[1739434746076,0.015,2675.9,2675.3,3.73782]
[1739434746376,0.015,2675.9,2675.8,3.7372]
[1739434746673,5.29,2676.0,2675.9,3.73706]
[1739434746878,5.599,2676.0,2675.9,3.73706]
[1739434747332,5.599,2676.0,2675.7,3.73732]
[1739434747532,5.599,2676.0,2675.6,3.73747]
[1739434747765,0.015,2675.9,2675.5,3.73756]
[1739434747972,0.015,2675.9,2675.6,3.73747]
[1739434748159,0.015,2675.9,2675.7,3.73733]
[1739434748361,0.1523,2676.1,2675.4,0.03737558]